fUST/lending_fUST_20260124
["ID","MTS","AMOUNT","RATE_DAILY","PERIOD"]
[403205844,1769266302264,-500.0,0.00017534,2]
[403205845,1769266302273,-1751.66,0.00017534,2]
[403205846,1769266302282,-500.0,0.00017534,2]
[403205847,1769266302291,-500.0,0.00017534,2]
[403205848,1769266302301,-508.4,0.00017534,2]
[403205849,1769266302310,-500.0,0.00017534,2]
[403205850,1769266302319,-1013.44,0.00017534,2]
[403205851,1769266302327,-502.72,0.00017534,2]
[403205852,1769266302336,-532.35,0.00017534,2]
[403205853,1769266302346,-500.0,0.00017534,2]
[403205854,1769266302355,-500.0,0.00017534,2]
[403205855,1769266302364,-500.0,0.00017534,2]
[403205856,1769266302373,-500.0,0.00017534,2]
[403205857,1769266302382,-500.0,0.00017534,2]
[403205858,1769266302391,-500.0,0.00017534,2]
[403205859,1769266302399,-500.0,0.00017534,2]
[403205860,1769266302408,-500.0,0.00017534,2]
[403205861,1769266302417,-500.0,0.00017534,2]
[403205862,1769266302426,-500.0,0.00017534,2]
[403205863,1769266302435,-1060.87,0.00017534,2]
[403205864,1769266302444,-500.0,0.00017534,2]
[403205865,1769266302453,-500.0,0.00017534,2]
[403205866,1769266302462,-500.0,0.00017534,2]
[403205867,1769266302471,-500.0,0.00017534,2]
[403205868,1769266302480,-394.3490458,0.00017534,2]
[403205869,1769266302489,-500.0,0.00017534,2]
[403205870,1769266302499,-500.0,0.00017534,2]
[403205871,1769266302510,-500.0,0.00017534,2]
[403205872,1769266302521,-500.0,0.00017534,2]
[403205873,1769266302531,-500.0,0.00017534,2]
[403205874,1769266302540,-531.37,0.00017534,2]
[403205875,1769266302549,-500.0,0.00017534,2]
[403205876,1769266302558,-500.0,0.00017534,2]
[403205877,1769266302568,-515.10736331,0.00017534,2]
[403205878,1769266302577,-500.0,0.00017534,2]
[403205879,1769266302586,-500.0,0.00017534,2]
[403205880,1769266302595,-500.0,0.00017534,2]
[403205881,1769266302604,-500.0,0.00017534,2]
[403205882,1769266302614,-512.53,0.00017534,2]
[403205883,1769266302623,-2535.54,0.00017534,2]
[403205884,1769266302632,-500.0,0.00017534,2]
[403205885,1769266302640,-500.0,0.00017534,2]
[403205886,1769266302650,-500.0,0.00017534,2]
[403205887,1769266302659,-504.4,0.00017534,2]
[403205888,1769266302668,-500.0,0.00017534,2]
[403205889,1769266302677,-370.03662187,0.00017534,2]
[403205890,1769266302687,-508.39,0.00017534,2]
[403205891,1769266302696,-500.0,0.00017534,2]
[403205892,1769266302704,-500.0,0.00017534,2]
[403205893,1769266302714,-500.0,0.00017534,2]
[403205894,1769266302723,-500.0,0.00017534,2]
[403205895,1769266302733,-506.81349618,0.00017534,2]
[403205896,1769266302742,-512.31,0.00017534,2]
[403205897,1769266302751,-500.0,0.00017534,2]
[403205898,1769266302760,-500.0,0.00017534,2]
[403205899,1769266302770,-500.0,0.00017534,2]
[403205900,1769266302779,-500.0,0.00017534,2]
[403205901,1769266302789,-510.8,0.00017534,2]
[403205902,1769266302798,-500.0,0.00017534,2]
[403205903,1769266302807,-505.5,0.00017534,2]
[403205904,1769266302816,-500.0,0.00017534,2]
[403205905,1769266302825,-518.63,0.00017534,2]
[403205906,1769266302833,-500.0,0.00017534,2]
[403205907,1769266302843,-500.0,0.00017534,2]
[403205908,1769266302852,-500.0,0.00017534,2]
[403205909,1769266302860,-5223.42,0.00017534,2]
[403205910,1769266302870,-189.15974912,0.00017534,2]
[403205911,1769266302879,-500.0,0.00017534,2]
[403205912,1769266302889,-500.0,0.00017534,2]
[403205913,1769266302898,-500.0,0.00017534,2]
[403205914,1769266302907,-500.0,0.00017534,2]
[403205915,1769266302917,-504.62743082,0.00017534,2]
[403205916,1769266302925,-500.0,0.00017534,2]
[403205917,1769266302934,-15042.8,0.00017534,2]
[403205918,1769266302943,-160.0,0.00017613,2]
[403205919,1769266302953,-7804.8,0.000178,3]
[403205920,1769266302962,-257.41531725,0.00017808,2]
[403205921,1769266302972,-500.0,0.00017808,2]
[403205922,1769266302982,-500.0,0.00017808,2]
[403205923,1769266302991,-500.0,0.00017808,2]
[403205924,1769266303001,-522.565706,0.00017808,2]
[403205925,1769266303010,-512.58238446,0.00017808,2]
[403205926,1769266303020,-500.0,0.00017808,2]
[403205927,1769266303029,-507.84740977,0.00017808,2]
[403205928,1769266303039,-500.0,0.00017808,2]
[403205929,1769266303048,-500.0,0.00017808,2]
[403205930,1769266303057,-500.0,0.00017808,2]
[403205931,1769266303072,-500.0,0.00017808,2]
[403205932,1769266303081,-520.87876814,0.00017808,2]
[403205933,1769266303091,-500.0,0.00017808,2]
[403205934,1769266303100,-695.05,0.00017808,2]
[403205935,1769266303111,-500.0,0.00017808,2]
[403205936,1769266303120,-510.9822681,0.00017808,2]
[403205937,1769266303130,-500.0,0.00017808,2]
[403205938,1769266303143,-557.63151782,0.00017808,2]
[403205939,1769266303153,-500.0,0.00017808,2]
[403205940,1769266303163,-500.0,0.00017808,2]
[403205941,1769266303173,-500.0,0.00017808,2]
[403205942,1769266303182,-500.0,0.00017808,2]
[403205943,1769266303190,-500.0,0.00017808,2]
[403205944,1769266303199,-500.0,0.00017808,2]
[403205945,1769266303208,-393.08120907,0.00017808,2]
[403205946,1769266303218,-500.0,0.00017808,2]
[403205947,1769266303227,-500.0,0.00017808,2]
[403205948,1769266303237,-500.0,0.00017808,2]
[403205949,1769266303246,-500.0,0.00017808,2]
[403205950,1769266303256,-532.06,0.00017808,2]
[403205951,1769266303265,-500.0,0.00017808,2]
[403205952,1769266303276,-553.92,0.00017808,2]
[403205953,1769266303285,-500.0,0.00017808,2]
[403205954,1769266303295,-570.08,0.00017808,2]
[403205955,1769266303305,-552.70319416,0.00017808,2]
[403205956,1769266303315,-500.0,0.00017808,2]
[403205957,1769266303324,-500.0,0.00017808,2]
[403205958,1769266303334,-500.0,0.00017808,2]
[403205959,1769266303343,-531.17,0.00017808,2]
[403205960,1769266303353,-500.0,0.00017808,2]
[403205961,1769266303362,-500.0,0.00017808,2]
[403205962,1769266303371,-500.0,0.00017808,2]
[403205963,1769266303380,-590.31,0.00017808,2]
[403205964,1769266303390,-1009.37,0.00017808,2]
[403205965,1769266303399,-500.0,0.00017808,2]
[403205966,1769266303409,-500.0,0.00017808,2]
[403205967,1769266303418,-567.52,0.00017808,2]
[403205968,1769266303427,-500.0,0.00017808,2]
[403205969,1769266303437,-500.0,0.00017808,2]
[403205970,1769266303447,-500.0,0.00017808,2]
[403205971,1769266303456,-759.08,0.00017808,2]
[403205972,1769266303466,-500.0,0.00017808,2]
[403205973,1769266303475,-500.0,0.00017808,2]
[403205974,1769266303487,-500.0,0.00017808,2]
[403205975,1769266303496,-500.0,0.00017808,2]
[403205976,1769266303505,-500.0,0.00017808,2]
[403205977,1769266303514,-548.2,0.00017808,2]
[403205978,1769266303523,-191.69622483,0.00017808,2]
[403205979,1769266303534,-612.4,0.00017808,2]
[403205980,1769266303543,-500.0,0.00017808,2]
[403205981,1769266303553,-500.0,0.00017808,2]
[403205982,1769266303563,-500.0,0.00017808,2]
[403205983,1769266303572,-346.75180512,0.00017808,2]
[403205984,1769266303582,-500.0,0.00017808,2]
[403205985,1769266303593,-500.0,0.00017808,2]
[403205986,1769266303602,-500.0,0.00017808,2]
[403205987,1769266303611,-500.0,0.00017808,2]
[403205988,1769266303621,-536.24,0.00017808,2]
[403205989,1769266303630,-587.82,0.00017808,2]
[403205990,1769266303639,-500.0,0.00017808,2]
[403205991,1769266303648,-500.0,0.00017808,2]
[403205992,1769266303658,-500.0,0.00017808,2]
[403205993,1769266303668,-500.0,0.00017808,2]
[403205994,1769266303677,-500.0,0.00017808,2]
[403205995,1769266303686,-526.72,0.00017808,2]
[403205996,1769266303696,-500.0,0.00017808,2]
[403205997,1769266303706,-213.97022614,0.00017808,2]
[403205998,1769266303716,-500.0,0.00017808,2]
[403205999,1769266303725,-587.69,0.00017808,2]
[403206000,1769266303735,-500.0,0.00017808,2]
[403206001,1769266303744,-500.0,0.00017808,2]
[403206002,1769266303753,-671.63,0.00017808,2]
[403206003,1769266303763,-500.0,0.00017808,2]
[403206004,1769266303772,-234.02680054,0.00017808,2]
[403206005,1769266303783,-528.54,0.00017808,2]
[403206006,1769266303793,-500.0,0.00017808,2]
[403206007,1769266303802,-500.0,0.00017808,2]
[403206008,1769266303812,-508.24,0.00017808,2]
[403206009,1769266303822,-315.30982843,0.00017808,2]
[403206010,1769266303831,-500.0,0.00017808,2]
[403206011,1769266303841,-547.34303236,0.00017808,2]
[403206012,1769266303851,-500.0,0.00017808,2]
[403206013,1769266303860,-1751.66,0.00017808,2]
[403206014,1769266303869,-500.0,0.00017808,2]
[403206015,1769266303879,-500.0,0.00017808,2]
[403206016,1769266303888,-508.4,0.00017808,2]
[403206017,1769266303898,-500.0,0.00017808,2]
[403206018,1769266303908,-1013.44,0.00017808,2]
[403206019,1769266303917,-502.72,0.00017808,2]
[403206020,1769266303927,-532.35,0.00017808,2]
[403206021,1769266303938,-500.0,0.00017808,2]
[403206022,1769266303947,-565.68606016,0.00017808,2]
[403206023,1769266303958,-500.0,0.00017808,2]
[403206024,1769266303967,-500.0,0.00017808,2]
[403206025,1769266303977,-500.0,0.00017808,2]
[403206026,1769266303987,-500.0,0.00017808,2]
[403206027,1769266303997,-500.0,0.00017808,2]
[403206028,1769266304007,-500.0,0.00017808,2]
[403206029,1769266304017,-500.0,0.00017808,2]
[403206030,1769266304026,-500.0,0.00017808,2]
[403206031,1769266304036,-1060.87,0.00017808,2]
[403206032,1769266304046,-500.0,0.00017808,2]
[403206033,1769266304056,-500.0,0.00017808,2]
[403206034,1769266304069,-309.57282414,0.00017808,2]
[403206035,1769266304079,-500.0,0.00017808,2]
[403206036,1769266304089,-500.0,0.00017808,2]
[403206037,1769266304099,-500.0,0.00017808,2]
[403206038,1769266304110,-500.0,0.00017808,2]
[403206039,1769266304119,-500.0,0.00017808,2]
[403206040,1769266304129,-500.0,0.00017808,2]
[403206041,1769266304140,-531.37,0.00017808,2]
[403206042,1769266304150,-500.0,0.00017808,2]
[403206043,1769266304159,-500.0,0.00017808,2]
[403206044,1769266304169,-500.0,0.00017808,2]
[403206045,1769266304178,-500.0,0.00017808,2]
[403206046,1769266304187,-500.0,0.00017808,2]
[403206047,1769266304196,-526.58052862,0.00017808,2]
[403206048,1769266304205,-512.53,0.00017808,2]
[403206049,1769266304214,-2535.54,0.00017808,2]
[403206050,1769266304223,-500.0,0.00017808,2]
[403206051,1769266304232,-226.9778213,0.00017808,2]
[403206052,1769266304241,-500.0,0.00017808,2]
[403206053,1769266304251,-504.4,0.00017808,2]
[403206054,1769266304260,-500.0,0.00017808,2]
[403206055,1769266304269,-508.39,0.00017808,2]
[403206056,1769266304279,-500.0,0.00017808,2]
[403206057,1769266304289,-172.19715899,0.00017808,2]
[403206058,1769266304299,-500.0,0.00017808,2]
[403206059,1769266304308,-500.0,0.00017808,2]
[403206060,1769266304317,-512.31,0.00017808,2]
[403206061,1769266304327,-500.0,0.00017808,2]
[403206062,1769266304336,-500.0,0.00017808,2]
[403206063,1769266304346,-500.0,0.00017808,2]
[403206064,1769266304355,-500.0,0.00017808,2]
[403206065,1769266304365,-510.8,0.00017808,2]
[403206066,1769266304375,-500.0,0.00017808,2]
[403206067,1769266304385,-505.5,0.00017808,2]
[403206068,1769266304394,-308.18190583,0.00017808,2]
[403206069,1769266304404,-518.63,0.00017808,2]
[403206070,1769266304413,-500.0,0.00017808,2]
[403206071,1769266304422,-500.0,0.00017808,2]
[403206072,1769266304431,-500.0,0.00017808,2]
[403206073,1769266304441,-5223.42,0.00017808,2]
[403206074,1769266304450,-500.0,0.00017808,2]
[403206075,1769266304460,-500.0,0.00017808,2]
[403206076,1769266304470,-509.05119554,0.00017808,2]
[403206077,1769266304479,-500.0,0.00017808,2]
[403206078,1769266304489,-500.0,0.00017808,2]
[403206079,1769266304498,-150.40475955,0.00017808,2]
[403206080,1769266304508,-1000.0,0.00017808,2]
[403206081,1769266304518,-263.3816362,0.00017895,32]
[403206082,1769266304527,-271.2,0.00017932,2]
[403206083,1769266304537,-1000.0,0.00018,2]
[403206084,1769266304547,-240.97377757,0.00018018,12]
[403206085,1769266304556,-500.0,0.00018082,2]
[403206086,1769266304565,-500.0,0.00018082,2]
[403206087,1769266304574,-500.0,0.00018082,2]
[403206088,1769266304584,-500.0,0.00018082,2]
[403206089,1769266304593,-500.0,0.00018082,2]
[403206090,1769266304602,-500.0,0.00018082,2]
[403206091,1769266304611,-168.12840798,0.00018082,2]
[403206092,1769266304621,-500.0,0.00018082,2]
[403206093,1769266304630,-500.0,0.00018082,2]
[403206094,1769266304639,-695.05,0.00018082,2]
[403206095,1769266304649,-500.0,0.00018082,2]
[403206096,1769266304658,-500.0,0.00018082,2]
[403206097,1769266304668,-500.0,0.00018082,2]
[403206098,1769266304679,-500.0,0.00018082,2]
[403206099,1769266304688,-500.0,0.00018082,2]
[403206100,1769266304697,-500.0,0.00018082,2]
[403206101,1769266304707,-500.0,0.00018082,2]
[403206102,1769266304716,-500.0,0.00018082,2]
[403206103,1769266304725,-500.0,0.00018082,2]
[403206104,1769266304735,-500.0,0.00018082,2]
[403206105,1769266304744,-500.0,0.00018082,2]
[403206106,1769266304753,-500.0,0.00018082,2]
[403206107,1769266304764,-532.06,0.00018082,2]
[403206108,1769266304774,-195.67,0.00018082,2]
[403206109,1769266304785,-553.92,0.00018082,2]
[403206110,1769266304796,-500.0,0.00018082,2]
[403206111,1769266304806,-570.08,0.00018082,2]
[403206112,1769266304815,-500.0,0.00018082,2]
[403206113,1769266304825,-639.18341459,0.00018082,2]
[403206114,1769266304834,-500.0,0.00018082,2]
[403206115,1769266304844,-531.17,0.00018082,2]
[403206116,1769266304853,-500.0,0.00018082,2]
[403206117,1769266304863,-500.0,0.00018082,2]
[403206118,1769266304872,-500.0,0.00018082,2]
[403206119,1769266304881,-590.31,0.00018082,2]
[403206120,1769266304891,-1009.37,0.00018082,2]
[403206121,1769266304900,-546.74479069,0.00018082,2]
[403206122,1769266304910,-500.0,0.00018082,2]
[403206123,1769266304919,-567.52,0.00018082,2]
[403206124,1769266304929,-500.0,0.00018082,2]
[403206125,1769266304938,-500.0,0.00018082,2]
[403206126,1769266304948,-500.0,0.00018082,2]
[403206127,1769266304958,-759.08,0.00018082,2]
[403206128,1769266304968,-500.0,0.00018082,2]
[403206129,1769266304978,-500.0,0.00018082,2]
[403206130,1769266304988,-500.0,0.00018082,2]
[403206131,1769266304997,-500.0,0.00018082,2]
[403206132,1769266305007,-500.0,0.00018082,2]
[403206133,1769266305017,-548.2,0.00018082,2]
[403206134,1769266305026,-612.4,0.00018082,2]
[403206135,1769266305036,-500.0,0.00018082,2]
[403206136,1769266305046,-500.0,0.00018082,2]
[403206137,1769266305055,-500.0,0.00018082,2]
[403206138,1769266305067,-500.0,0.00018082,2]
[403206139,1769266305077,-500.0,0.00018082,2]
[403206140,1769266305086,-500.0,0.00018082,2]
[403206141,1769266305097,-500.0,0.00018082,2]
[403206142,1769266305107,-536.24,0.00018082,2]
[403206143,1769266305116,-587.82,0.00018082,2]
[403206144,1769266305125,-399.892072,0.00018082,2]
[403206145,1769266305134,-500.0,0.00018082,2]
[403206146,1769266305144,-500.0,0.00018082,2]
[403206147,1769266305154,-500.0,0.00018082,2]
[403206148,1769266305163,-460.76380678,0.00018082,2]
[403206149,1769266305173,-526.72,0.00018082,2]
[403206150,1769266305183,-500.0,0.00018082,2]
[403206151,1769266305192,-587.69,0.00018082,2]
[403206152,1769266305202,-500.0,0.00018082,2]
[403206153,1769266305211,-500.0,0.00018082,2]
[403206154,1769266305220,-671.63,0.00018082,2]
[403206155,1769266305230,-500.0,0.00018082,2]
[403206156,1769266305393,-528.54,0.00018082,2]
[403206157,1769266305403,-500.0,0.00018082,2]
[403206158,1769266305413,-500.0,0.00018082,2]
[403206159,1769266305422,-508.24,0.00018082,2]
[403206160,1769266305431,-500.0,0.00018082,2]
[403206161,1769266305441,-500.0,0.00018082,2]
[403206162,1769266305451,-1751.66,0.00018082,2]
[403206163,1769266305460,-500.0,0.00018082,2]
[403206164,1769266305469,-500.0,0.00018082,2]
[403206165,1769266305478,-508.4,0.00018082,2]
[403206166,1769266305487,-500.0,0.00018082,2]
[403206167,1769266305498,-1013.44,0.00018082,2]
[403206168,1769266305507,-502.72,0.00018082,2]
[403206169,1769266305516,-532.35,0.00018082,2]
[403206170,1769266305526,-500.0,0.00018082,2]
[403206171,1769266305536,-500.0,0.00018082,2]
[403206172,1769266305545,-500.0,0.00018082,2]
[403206173,1769266305554,-500.0,0.00018082,2]
[403206174,1769266305563,-500.0,0.00018082,2]
[403206175,1769266305573,-500.0,0.00018082,2]
[403206176,1769266305582,-500.0,0.00018082,2]
[403206177,1769266305591,-500.0,0.00018082,2]
[403206178,1769266305600,-500.0,0.00018082,2]
[403206179,1769266305609,-1060.87,0.00018082,2]
[403206180,1769266305618,-547.13067194,0.00018082,2]
[403206181,1769266305627,-500.0,0.00018082,2]
[403206182,1769266305636,-500.0,0.00018082,2]
[403206183,1769266305645,-500.0,0.00018082,2]
[403206184,1769266305654,-464.86591551,0.00018082,2]
[403206185,1769266305664,-500.0,0.00018082,2]
[403206186,1769266305674,-500.0,0.00018082,2]
[403206187,1769266305683,-500.0,0.00018082,2]
[403206188,1769266305692,-531.37,0.00018082,2]
[403206189,1769266305701,-500.0,0.00018082,2]
[403206190,1769266305710,-500.0,0.00018082,2]
[403206191,1769266305720,-500.0,0.00018082,2]
[403206192,1769266305729,-500.0,0.00018082,2]
[403206193,1769266305738,-500.0,0.00018082,2]
[403206194,1769266305747,-512.53,0.00018082,2]
[403206195,1769266305756,-2535.54,0.00018082,2]
[403206196,1769266305766,-500.0,0.00018082,2]
[403206197,1769266305774,-500.0,0.00018082,2]
[403206198,1769266305784,-504.4,0.00018082,2]
[403206199,1769266305792,-500.0,0.00018082,2]
[403206200,1769266305802,-508.39,0.00018082,2]
[403206201,1769266305811,-500.0,0.00018082,2]
[403206202,1769266305820,-500.0,0.00018082,2]
[403206203,1769266305829,-500.0,0.00018082,2]
[403206204,1769266305838,-512.31,0.00018082,2]
[403206205,1769266305847,-500.0,0.00018082,2]
[403206206,1769266305856,-500.0,0.00018082,2]
[403206207,1769266305865,-500.0,0.00018082,2]
[403206208,1769266305874,-500.0,0.00018082,2]
[403206209,1769266305883,-510.8,0.00018082,2]
[403206210,1769266305892,-500.0,0.00018082,2]
[403206211,1769266305902,-505.5,0.00018082,2]
[403206212,1769266305911,-518.63,0.00018082,2]
[403206213,1769266305920,-500.0,0.00018082,2]
[403206214,1769266305929,-500.0,0.00018082,2]
[403206215,1769266305938,-168.78536015,0.00018082,2]
[403206216,1769266305948,-5223.42,0.00018082,2]
[403206217,1769266305957,-500.0,0.00018082,2]
[403206218,1769266305966,-500.0,0.00018082,2]
[403206219,1769266305975,-500.0,0.00018082,2]
[403206220,1769266305985,-503.6300216,0.00018082,2]
[403206221,1769266305994,-153.0,0.00018214,2]
[403206222,1769266306004,-251.38916279,0.00018219,2]
[403206223,1769266306013,-594.64394312,0.00018356,2]
[403206224,1769266306023,-500.0,0.00018356,2]
[403206225,1769266306032,-500.0,0.00018356,2]
[403206226,1769266306041,-500.0,0.00018356,2]
[403206227,1769266306050,-500.0,0.00018356,2]
[403206228,1769266306059,-500.0,0.00018356,2]
[403206229,1769266306073,-516.39428077,0.00018356,2]
[403206230,1769266306082,-240.43109434,0.00018356,2]
[403206231,1769266306092,-695.05,0.00018356,2]
[403206232,1769266306101,-500.0,0.00018356,2]
[403206233,1769266306114,-525.38924845,0.00018356,2]
[403206234,1769266306123,-528.57256513,0.00018356,2]
[403206235,1769266306133,-189.38433339,0.00018356,2]
[403206236,1769266306145,-500.0,0.00018356,2]
[403206237,1769266306154,-500.0,0.00018356,2]
[403206238,1769266306163,-500.0,0.00018356,2]
[403206239,1769266306172,-500.0,0.00018356,2]
[403206240,1769266306181,-500.0,0.00018356,2]
[403206241,1769266306190,-500.0,0.00018356,2]
[403206242,1769266306199,-500.0,0.00018356,2]
[403206243,1769266306208,-500.0,0.00018356,2]
[403206244,1769266306217,-532.06,0.00018356,2]
[403206245,1769266306227,-553.92,0.00018356,2]
[403206246,1769266306238,-500.0,0.00018356,2]
[403206247,1769266306248,-570.08,0.00018356,2]
[403206248,1769266306258,-500.0,0.00018356,2]
[403206249,1769266306267,-500.0,0.00018356,2]
[403206250,1769266306277,-531.17,0.00018356,2]
[403206251,1769266306286,-500.0,0.00018356,2]
[403206252,1769266306295,-500.0,0.00018356,2]
[403206253,1769266306304,-500.0,0.00018356,2]
[403206254,1769266306313,-590.31,0.00018356,2]
[403206255,1769266306323,-1009.37,0.00018356,2]
[403206256,1769266306332,-500.0,0.00018356,2]
[403206257,1769266306341,-567.52,0.00018356,2]
[403206258,1769266306350,-500.0,0.00018356,2]
[403206259,1769266306359,-500.0,0.00018356,2]
[403206260,1769266306368,-500.0,0.00018356,2]
[403206261,1769266306377,-759.08,0.00018356,2]
[403206262,1769266306386,-320.41496012,0.00018356,2]
[403206263,1769266306395,-429.1692468,0.00018356,2]
[403206264,1769266306404,-500.0,0.00018356,2]
[403206265,1769266306413,-528.73334833,0.00018356,2]
[403206266,1769266306423,-500.0,0.00018356,2]
[403206267,1769266306432,-548.2,0.00018356,2]
[403206268,1769266306440,-612.4,0.00018356,2]
[403206269,1769266306449,-500.0,0.00018356,2]
[403206270,1769266306458,-500.0,0.00018356,2]
[403206271,1769266306467,-500.0,0.00018356,2]
[403206272,1769266306476,-500.0,0.00018356,2]
[403206273,1769266306485,-500.0,0.00018356,2]
[403206274,1769266306494,-500.0,0.00018356,2]
[403206275,1769266306504,-500.0,0.00018356,2]
[403206276,1769266306513,-536.24,0.00018356,2]
[403206277,1769266306522,-587.82,0.00018356,2]
[403206278,1769266306531,-500.0,0.00018356,2]
[403206279,1769266306540,-500.0,0.00018356,2]
[403206280,1769266306549,-526.72,0.00018356,2]
[403206281,1769266306558,-500.0,0.00018356,2]
[403206282,1769266306567,-587.69,0.00018356,2]
[403206283,1769266306576,-500.0,0.00018356,2]
[403206284,1769266306586,-351.40862847,0.00018356,2]
[403206285,1769266306596,-671.63,0.00018356,2]
[403206286,1769266306605,-509.10325309,0.00018356,2]
[403206287,1769266306614,-528.54,0.00018356,2]
[403206288,1769266306623,-500.0,0.00018356,2]
[403206289,1769266306632,-500.0,0.00018356,2]
[403206290,1769266306641,-508.24,0.00018356,2]
[403206291,1769266306650,-500.0,0.00018356,2]
[403206292,1769266306659,-500.0,0.00018356,2]
[403206293,1769266306672,-1751.66,0.00018356,2]
[403206294,1769266306681,-500.0,0.00018356,2]
[403206295,1769266306690,-500.0,0.00018356,2]
[403206296,1769266306699,-508.4,0.00018356,2]
[403206297,1769266306709,-500.0,0.00018356,2]
[403206298,1769266306718,-1013.44,0.00018356,2]
[403206299,1769266306728,-502.72,0.00018356,2]
[403206300,1769266306737,-532.35,0.00018356,2]
[403206301,1769266306747,-500.0,0.00018356,2]
[403206302,1769266306756,-500.0,0.00018356,2]
[403206303,1769266306766,-247.73816873,0.00018356,2]
[403206304,1769266306775,-500.0,0.00018356,2]
[403206305,1769266306784,-500.0,0.00018356,2]
[403206306,1769266306794,-500.0,0.00018356,2]
[403206307,1769266306803,-500.0,0.00018356,2]
[403206308,1769266306812,-500.0,0.00018356,2]
[403206309,1769266306821,-500.0,0.00018356,2]
[403206310,1769266306831,-1060.87,0.00018356,2]
[403206311,1769266306840,-500.0,0.00018356,2]
[403206312,1769266306849,-500.0,0.00018356,2]
[403206313,1769266306858,-182.92680738,0.00018356,2]
[403206314,1769266306868,-500.0,0.00018356,2]
[403206315,1769266306877,-500.0,0.00018356,2]
[403206316,1769266306887,-500.0,0.00018356,2]
[403206317,1769266306896,-531.37,0.00018356,2]
[403206318,1769266306906,-520.01221952,0.00018356,2]
[403206319,1769266306915,-500.0,0.00018356,2]
[403206320,1769266306924,-500.0,0.00018356,2]
[403206321,1769266306933,-265.74139685,0.00018356,2]
[403206322,1769266306941,-500.0,0.00018356,2]
[403206323,1769266306950,-512.53,0.00018356,2]
[403206324,1769266306959,-2535.54,0.00018356,2]
[403206325,1769266306969,-500.0,0.00018356,2]
[403206326,1769266306978,-500.0,0.00018356,2]
[403206327,1769266306987,-504.4,0.00018356,2]
[403206328,1769266306996,-222.19985741,0.00018356,2]
[403206329,1769266307005,-508.39,0.00018356,2]
[403206330,1769266307015,-500.0,0.00018356,2]
[403206331,1769266307024,-500.0,0.00018356,2]
[403206332,1769266307034,-500.0,0.00018356,2]
[403206333,1769266307044,-512.31,0.00018356,2]
[403206334,1769266307055,-500.0,0.00018356,2]
[403206335,1769266307064,-506.83534787,0.00018356,2]
[403206336,1769266307077,-500.0,0.00018356,2]
[403206337,1769266307086,-500.0,0.00018356,2]
[403206338,1769266307095,-510.8,0.00018356,2]
[403206339,1769266307104,-500.0,0.00018356,2]
[403206340,1769266307115,-505.5,0.00018356,2]
[403206341,1769266307126,-518.63,0.00018356,2]
[403206342,1769266307135,-500.0,0.00018356,2]
[403206343,1769266307145,-500.0,0.00018356,2]